bitfinex/quotes_ETHUSD_20250425
["timestamp","ask_amount","ask_price","bid_price","bid_amount"]
[1745554885815,4.937,1768.5,1768.2,0.20438868]
[1745554886138,4.937,1768.5,1768.2,5.6554346]
[1745554886307,4.937,1768.5,1768.3,0.20390164]
[1745554886702,4.937,1768.5,1768.3,5.85891164]
[1745554886940,4.937,1768.5,1768.3,0.20390164]
[1745554887135,4.937,1768.5,1768.3,5.85880774]
[1745554889310,0.76766808,1768.4,1768.0,0.7646]
[1745554889514,5.51081,1768.5,1768.0,0.7646]
[1745554889515,0.8188,1768.3,1768.1,5.65575721]
[1745554889924,0.8188,1768.3,1768.0,6.42052121]
[1745554891131,0.8188,1768.3,1768.0,6.42047484]
[1745554891431,0.8188,1768.3,1768.1,5.655771]
[1745554893748,0.8188,1768.3,1768.0,5.65587484]
[1745554894127,0.8188,1768.3,1767.9,6.41107447]
[1745554895051,0.8188,1768.3,1768.0,5.65610464]
[1745554896063,0.8188,1768.3,1768.0,5.65595744]
[1745554896229,0.8316,1768.4,1768.0,6.86267535]
[1745554896433,0.8316,1768.4,1768.0,12.51856829]
[1745554896756,0.8316,1768.4,1768.0,6.86261085]
[1745554897059,4.937,1768.5,1768.1,0.17156187]
[1745554897364,4.937,1768.5,1768.2,0.7559]
[1745554897734,4.937,1768.5,1768.3,0.17044968]
[1745554898145,4.937,1768.5,1768.0,6.43221401]
[1745554898340,7.937,1768.5,1768.4,0.16989369]
[1745554898522,7.937,1768.5,1768.0,12.08809461]
[1745554898749,7.937,1768.5,1768.4,0.16989369]
[1745554898950,8.81386,1768.5,1768.0,6.4321806]
[1745554899177,7.937,1768.5,1768.4,0.16989369]
[1745554899381,7.937,1768.5,1768.0,6.4321806]
[1745554899579,7.937,1768.5,1768.4,0.16989369]
[1745554899763,7.937,1768.5,1768.0,6.4321806]
[1745554899967,7.937,1768.5,1768.4,0.17016902]
[1745554900166,7.937,1768.5,1768.0,6.4321806]
[1745554900167,8.81386,1768.5,1768.0,6.4321806]
[1745554900495,7.937,1768.5,1768.1,5.65551066]
[1745554900674,7.937,1768.5,1768.1,5.82734786]
[1745554900861,7.937,1768.5,1768.1,0.1718372]
[1745554905000,7.937,1768.5,1768.2,6.47591366]
[1745554905353,7.937,1768.5,1768.3,0.17072502]
[1745554906652,8.81386,1768.5,1768.3,0.17072502]
[1745554907396,0.7905,1768.4,1768.3,0.17072502]
[1745554907891,0.7905,1768.4,1768.0,5.65592325]
[1745554908081,0.7905,1768.4,1768.1,0.1718372]
[1745554908669,0.7905,1768.4,1767.9,6.42517244]
[1745554908874,1.42234479,1768.4,1768.0,0.17256545]
[1745554909963,1.42234479,1768.4,1768.0,5.82852167]
[1745554911659,4.39951287,1768.4,1768.0,0.17256545]
[1745554911863,0.8003,1768.1,1767.7,6.41315726]
[1745554912063,5.7283,1768.1,1767.7,0.7562]
[1745554912284,5.7283,1768.1,1767.8,0.15929756]
[1745554912761,5.7283,1768.1,1767.8,5.81590841]
[1745554914897,5.7283,1768.1,1767.8,0.15929756]
[1745554916385,5.7283,1768.1,1767.8,5.816005]
[1745554916694,5.7283,1768.1,1767.8,0.15929756]
[1745554918797,5.7283,1768.1,1767.8,5.81604145]
[1745554922284,5.7283,1768.1,1767.8,0.15929756]
[1745554922491,6.30113,1768.1,1767.8,5.81604236]
[1745554922697,5.7283,1768.1,1767.8,5.81604236]
[1745554923400,5.7283,1768.1,1767.8,5.81583329]
[1745554925711,5.7283,1768.1,1767.8,0.15929756]
[1745554926011,5.7283,1768.1,1767.8,5.81602805]
[1745554926990,4.928,1768.1,1767.9,5.65636454]
[1745554927401,4.928,1768.1,1768.0,0.15980266]
[1745554928814,4.928,1768.1,1767.8,5.65650657]
[1745554929025,4.928,1768.1,1768.0,0.15980266]
[1745554929200,4.928,1768.1,1767.9,0.16035891]
[1745554929399,4.928,1768.1,1768.0,0.15980266]
[1745554929800,4.928,1768.1,1767.8,11.31304815]
[1745554930113,4.928,1768.1,1767.9,0.16035891]
[1745554931010,4.928,1768.1,1767.9,5.81671944]
[1745554933092,4.928,1768.1,1767.9,0.16035891]
[1745554934308,4.928,1768.1,1767.9,5.81676648]
[1745554935016,4.928,1768.1,1767.9,0.16035891]
[1745554939035,6.2042,1768.1,1767.9,0.16035891]
[1745554939220,6.2042,1768.1,1767.7,6.41312391]
[1745554939534,5.7114,1768.1,1767.7,6.41301708]
[1745554939695,5.7114,1768.1,1767.8,0.16070864]
[1745554942838,4.928,1768.1,1768.0,5.65610859]
[1745554943142,4.928,1768.1,1768.0,5.81659968]
[1745554943294,5.7045,1768.4,1768.1,5.65568685]
[1745554943501,5.7045,1768.4,1768.2,0.15937878]
[1745554943712,6.31824821,1768.4,1768.1,5.65577791]
[1745554943911,4.924,1768.4,1768.2,0.15937878]
[1745554944112,4.924,1768.4,1768.2,5.65525439]
[1745554944313,4.924,1768.4,1768.3,7.35003544]
[1745554944513,24.84776462,1768.7,1768.3,2.45828643]
[1745554944735,2.94476462,1768.7,1768.6,6.41758975]
[1745554944936,7.224,1769.0,1768.9,5.65323082]
[1745554945251,1.2915,1769.4,1768.9,5.65323082]
[1745554945252,4.924,1769.3,1769.2,5.65227221]
[1745554945541,4.924,1769.3,1769.2,0.15296046]
[1745554945770,4.924,1769.3,1769.1,5.6523661]
[1745554946052,4.924,1769.3,1769.2,5.80523267]
[1745554946209,0.5,1769.4,1769.3,5.65195274]
[1745554946409,4.923,1769.6,1769.2,6.57075652]
[1745554946712,4.923,1769.6,1769.3,5.80215503]
[1745554947334,4.923,1769.6,1769.3,5.80194517]
[1745554949225,4.923,1769.6,1769.4,5.65157234]
[1745554949622,4.923,1769.6,1769.5,0.1490925]
[1745554950044,4.923,1769.6,1769.5,5.80040643]
[1745554951459,4.923,1769.6,1769.5,0.1490925]
[1745554953326,4.923,1769.6,1769.5,5.80040643]
[1745554955526,4.923,1769.6,1769.5,6.94560914]
[1745554955726,4.923,1769.6,1769.5,1.29429521]
[1745554956424,4.923,1769.6,1769.5,0.1490925]
[1745554957633,4.923,1769.6,1769.0,5.65278176]
[1745554957634,4.923,1769.6,1769.2,5.65199354]
[1745554958150,4.923,1769.6,1769.3,5.79396136]
[1745554959853,4.923,1769.6,1769.4,6.46779479]
[1745554960156,4.923,1769.6,1769.5,5.79284046]
[1745554960450,4.923,1769.6,1769.5,7.01890399]
[1745554962489,3.15652152,1769.8,1769.5,7.01890399]
[1745554962648,8.07752152,1769.8,1769.5,12.67001524]
[1745554962828,8.07752152,1769.8,1769.6,5.65096653]
[1745554963155,8.07752152,1769.8,1769.7,0.14041611]
[1745554963355,8.07752152,1769.8,1769.5,6.87716831]
[1745554963551,8.07752152,1769.8,1769.6,0.14031836]
[1745554964362,8.07752152,1769.8,1769.6,5.79128282]
[1745554964566,8.07752152,1769.8,1769.6,0.14031836]
[1745554967259,8.07752152,1769.8,1769.7,5.65067525]
[1745554967656,8.07752152,1769.8,1769.7,5.79026657]
[1745554968330,8.07752152,1769.8,1769.7,0.13959132]
[1745554968532,8.07752152,1769.8,1769.6,12.00329407]
[1745554968727,8.07752152,1769.8,1769.7,0.13959132]
[1745554968962,8.07752152,1769.8,1769.6,6.35251599]
[1745554969163,8.07752152,1769.8,1769.7,0.13959132]
[1745554969363,8.07752152,1769.8,1769.6,12.00326827]
[1745554969547,8.07752152,1769.8,1769.7,0.13959132]
[1745554969754,8.07752152,1769.8,1769.6,0.70174759]
[1745554969955,8.07752152,1769.8,1769.7,5.79026657]
[1745554970144,8.07752152,1769.8,1769.7,0.13959132]
[1745554970342,8.07752152,1769.8,1769.6,6.35253726]
[1745554970546,8.07752152,1769.8,1769.7,0.13959132]
[1745554970764,8.07752152,1769.8,1769.6,6.35253726]
[1745554970953,8.07752152,1769.8,1769.7,0.13959132]
[1745554971155,8.07752152,1769.8,1769.6,6.35253726]
[1745554971346,8.07752152,1769.8,1769.7,0.13959132]
[1745554971672,16.976,1770.2,1770.0,5.64949975]
[1745554971843,5.6932,1770.3,1770.0,5.64949975]
[1745554972165,5.6932,1770.3,1770.1,0.13709634]
[1745554972935,1.54430167,1770.2,1770.1,0.13709634]
[1745554973170,4.54430167,1770.2,1769.6,6.35260708]
[1745554973375,6.70105794,1770.3,1769.7,0.13886981]
[1745554973563,6.70105794,1770.3,1769.8,5.65030685]
[1745554973564,6.89883961,1770.3,1769.8,5.65030685]
[1745554973796,6.89883961,1770.3,1769.9,0.12681763]
[1745554973955,6.89883961,1770.3,1769.8,5.65035233]
[1745554974159,6.89883961,1770.3,1769.9,0.12647412]
[1745554974369,6.89883961,1770.3,1769.8,6.21538756]
[1745554974656,6.89883961,1770.3,1769.9,0.12647412]
[1745554974880,6.89883961,1770.3,1769.9,5.77638793]
[1745554975072,6.89883961,1770.3,1769.9,5.64991381]
[1745554975284,6.89883961,1770.3,1770.0,0.12591912]
[1745554976674,6.89883961,1770.3,1769.8,0.56503523]
[1745554976874,6.89883961,1770.3,1770.1,0.12536419]
[1745554977078,6.89883961,1770.3,1769.8,0.56503523]
[1745554977269,9.89883961,1770.3,1770.2,0.12480932]
[1745554977496,9.89883961,1770.3,1769.8,0.56503523]
[1745554977669,9.89883961,1770.3,1770.2,0.12480932]
[1745554977868,9.89883961,1770.3,1769.8,0.56503523]
[1745554978086,9.89883961,1770.3,1770.2,0.12480932]
[1745554978254,9.89883961,1770.3,1769.8,0.56503523]
[1745554978458,9.89883961,1770.3,1770.2,0.12374432]
[1745554978659,9.89883961,1770.3,1769.8,0.56503523]
[1745554979178,9.89883961,1770.3,1769.9,0.12540912]
[1745554979489,9.89883961,1770.3,1769.8,0.56503523]
[1745554979686,9.89883961,1770.3,1770.0,0.12485412]
[1745554979857,9.89883961,1770.3,1769.9,0.12540912]
[1745554980190,9.89883961,1770.3,1770.0,0.12485412]
[1745554980387,0.8224,1770.2,1769.6,6.44341355]
[1745554980694,0.8224,1770.2,1769.8,5.65032915]
[1745554981061,0.8224,1770.2,1769.9,0.12558087]
[1745554981357,0.8224,1770.2,1769.6,6.44332409]
[1745554981555,3.8224,1770.2,1769.7,0.77102502]
[1745554981791,1.58950167,1770.1,1769.7,0.12669104]
[1745554981966,1.58950167,1770.1,1769.6,0.7925]
[1745554982166,1.58950167,1770.1,1769.7,0.12651929]
[1745554982576,1.58950167,1770.1,1769.6,0.7925]
[1745554982785,1.58950167,1770.1,1769.7,0.12651929]
[1745554982987,1.58950167,1770.1,1769.5,6.44690694]
[1745554983189,0.76710167,1770.1,1769.6,0.12707447]
[1745554983363,0.7883,1770.0,1769.6,0.12707447]
[1745554986000,4.915,1769.9,1769.6,0.12707447]
[1745554986409,1.2091292,1770.5,1769.7,0.7512]
[1745554986713,1.2091292,1770.5,1770.2,6.4006386]
[1745554986714,6.1241292,1770.5,1770.2,6.4006386]
[1745554986876,6.1241292,1770.5,1770.3,5.64856797]
[1745554987078,5.3171292,1770.5,1770.3,5.77162009]
[1745554987557,5.3171292,1770.5,1770.3,0.12305212]
[1745554987757,5.84884212,1770.5,1770.3,0.12305212]
[1745554988899,5.84884212,1770.5,1770.1,5.64924724]
[1745554989101,5.84884212,1770.5,1770.4,0.12060846]
[1745554989300,5.84884212,1770.5,1770.1,5.64924724]
[1745554989489,10.42144379,1770.5,1770.4,0.12036811]
[1745554989800,0.8279,1770.3,1769.6,0.761]
[1745554989989,0.76710167,1770.1,1769.7,0.12425262]
[1745554990193,5.6662,1770.0,1769.4,6.44124989]
[1745554990493,5.6662,1770.0,1769.5,0.76948804]
[1745554990660,5.6662,1770.0,1769.5,6.42077519]
[1745554992066,5.6662,1770.0,1769.5,12.07185364]
[1745554992297,5.6662,1770.0,1769.5,6.42056649]
[1745554992891,5.6662,1770.0,1769.6,5.65098841]
[1745554993078,5.6662,1770.0,1769.5,6.42056649]
[1745554993275,5.6662,1770.0,1769.7,0.12425262]
[1745554993477,6.30953017,1770.0,1769.6,5.77577251]
[1745554993680,5.6662,1770.0,1769.8,0.1236975]
[1745554993881,5.6662,1770.0,1769.7,0.12425262]
[1745554994199,5.6662,1770.0,1769.8,0.1236975]
[1745554994401,5.6662,1770.0,1769.4,6.44130829]
[1745554994602,5.6662,1770.0,1769.5,0.12536305]
[1745554994778,5.6662,1770.0,1769.5,0.78203018]
[1745554995581,5.6662,1770.0,1769.5,6.43328002]
[1745554995787,5.6662,1770.0,1769.5,6.4331279]
[1745554996673,5.6662,1770.0,1769.6,5.6509145]
[1745554997001,5.6662,1770.0,1769.7,0.12425262]
[1745554997301,4.915,1770.0,1769.6,6.44607891]
[1745554997511,4.915,1770.0,1769.8,0.1236975]
[1745554997806,4.915,1770.0,1769.9,0.12314245]
[1745554998173,4.915,1770.0,1769.6,6.44607891]
[1745554998372,4.915,1770.0,1769.9,0.12314245]
[1745554998584,4.915,1770.0,1769.6,6.44607891]
[1745554998808,0.8094,1769.9,1769.7,0.12425262]
[1745554998985,0.8094,1769.9,1769.6,6.44607891]
[1745554999182,0.8094,1769.9,1769.8,0.1236975]
[1745554999395,0.8094,1769.9,1769.6,6.44607891]
[1745554999706,0.8094,1769.9,1769.8,0.1236975]
[1745554999879,0.8094,1769.9,1769.7,0.12425262]
[1745555000080,0.8094,1769.9,1769.8,0.1236975]
[1745555000479,0.8094,1769.9,1769.6,6.44607891]
[1745555000680,0.8094,1769.9,1769.8,0.1236975]
[1745555000880,0.8094,1769.9,1769.7,0.12425262]
[1745555001102,0.8094,1769.9,1769.8,0.1236975]
[1745555001811,0.8094,1769.9,1769.6,6.44607891]
[1745555002009,0.8094,1769.9,1769.7,0.12425262]
[1745555002213,4.915,1770.0,1769.7,5.65065327]
[1745555002402,4.915,1770.0,1769.8,0.1236975]
[1745555007209,4.915,1770.0,1769.6,6.44598482]
[1745555007413,4.915,1770.0,1769.9,0.12448195]
[1745555007715,4.915,1770.0,1769.6,6.44598482]
[1745555007912,4.915,1770.0,1769.9,0.12448195]
[1745555008410,4.915,1770.0,1769.6,6.44604607]
[1745555008708,4.915,1770.0,1769.9,0.12448195]
[1745555008910,4.915,1770.0,1769.6,6.44604607]
[1745555009117,4.915,1770.0,1769.9,0.12448195]
[1745555009282,5.52657035,1770.0,1769.6,6.44604607]
[1745555009482,4.915,1770.0,1769.9,0.12448195]
[1745555009993,4.915,1770.0,1769.6,6.44604607]
[1745555010193,4.915,1770.0,1769.9,0.12448195]
[1745555010408,4.915,1770.0,1769.6,6.44604607]
[1745555010607,4.915,1770.0,1769.9,0.12448195]
[1745555010811,4.915,1770.0,1769.7,5.65064527]
[1745555011105,4.915,1770.0,1769.9,0.12448195]
[1745555011285,4.915,1770.0,1769.8,5.7752756]
[1745555011492,4.915,1770.0,1769.9,0.12448195]
[1745555011793,3.0,1770.4,1770.0,5.64949619]
[1745555011794,4.912,1770.3,1770.0,5.64949619]
[1745555012182,5.48175,1770.3,1770.1,0.12337202]
[1745555012383,5.48175,1770.3,1769.9,6.4666109]
[1745555012609,5.48175,1770.3,1770.2,0.12281715]
[1745555012798,5.48175,1770.3,1769.9,5.65003095]
[1745555013007,5.48175,1770.3,1770.2,0.12425958]
[1745555013318,5.48175,1770.3,1769.8,5.65018282]
[1745555013491,6.25375,1770.3,1770.2,0.12425958]
[1745555013685,0.7606,1770.2,1769.7,5.6505154]
[1745555014286,0.7606,1770.2,1769.6,0.7848]
[1745555014483,0.7606,1770.2,1769.6,6.43566185]
[1745555014716,1.384835,1770.2,1769.6,6.43566185]
[1745555014889,0.8203,1770.1,1769.5,6.42917192]
[1745555015098,0.8203,1770.1,1769.6,5.65097873]
[1745555015307,0.8203,1770.1,1769.5,0.7781]
[1745555015615,0.8203,1770.1,1769.5,6.42927011]
[1745555015819,0.8203,1770.1,1769.5,6.42916278]
[1745555016026,0.8203,1770.1,1769.5,7.63722621]
[1745555016190,0.8203,1770.1,1769.5,1.98616343]
[1745555016391,0.8203,1770.1,1769.5,7.63730267]
[1745555016612,0.8203,1770.1,1769.5,13.28838857]
[1745555016784,0.8203,1770.1,1769.6,5.65088242]
[1745555018798,0.8203,1770.1,1769.5,7.63727501]
[1745555019229,0.8203,1770.1,1769.5,7.63724404]
[1745555019821,0.8203,1770.1,1769.6,0.52183279]
[1745555020330,0.8203,1770.1,1769.5,7.63722703]
[1745555020628,0.8203,1770.1,1769.5,13.28832759]
[1745555020834,0.8203,1770.1,1769.6,5.65095652]
[1745555021721,0.8203,1770.1,1769.5,7.63728976]
[1745555021893,0.8203,1770.1,1769.5,7.6372491]
[1745555022094,0.8203,1770.1,1769.5,1.98616343]
[1745555022294,0.8203,1770.1,1769.6,0.12745235]
[1745555022551,0.8203,1770.1,1769.6,5.77840656]
[1745555022824,4.912,1770.0,1769.6,5.77840656]
[1745555024623,0.8276,1769.9,1769.6,0.12745235]
[1745555025301,0.8276,1769.9,1769.2,5.65212942]
[1745555025503,0.65067017,1769.9,1769.7,0.11741489]
[1745555025811,0.8209,1769.7,1769.1,6.40340354]
[1745555026018,0.8209,1769.5,1769.0,5.68553327]
[1745555026810,0.8209,1769.5,1769.1,5.65259162]
[1745555027699,0.8209,1769.5,1769.0,5.68560285]
[1745555027946,0.8209,1769.5,1769.1,5.65241738]
[1745555028919,0.8209,1769.5,1769.2,5.6520942]
[1745555029126,0.8209,1769.5,1769.1,5.65243436]
[1745555029127,0.8209,1769.5,1769.3,5.65180226]
[1745555029333,4.912,1769.6,1769.5,5.65131393]
[1745555029497,0.8026,1769.8,1769.5,5.65131393]
[1745555029849,0.8026,1769.8,1769.2,0.7879]
[1745555030152,0.8026,1769.8,1769.4,5.65139072]
[1745555030448,0.8026,1769.8,1769.4,6.78170912]
[1745555031043,0.8026,1769.8,1769.3,5.65179114]
[1745555031239,0.8026,1769.8,1769.3,5.65171997]
[1745555032433,0.8026,1769.8,1769.4,5.65159251]
[1745555033236,0.8026,1769.8,1769.3,5.65177676]
[1745555033559,0.8026,1769.8,1769.3,5.65176164]
[1745555033846,0.8026,1769.8,1769.4,5.65161753]
[1745555034998,0.8026,1769.8,1769.3,6.86093028]
[1745555035403,0.8026,1769.8,1769.4,5.65139052]
[1745555037114,0.8026,1769.8,1769.3,6.86099988]
[1745555037316,0.8026,1769.8,1769.5,0.1204461]
[1745555037517,0.8026,1769.8,1769.4,0.12100141]
[1745555037518,1.41628659,1769.8,1769.4,0.12100141]
[1745555037719,0.817,1769.7,1769.6,0.11989086]
[1745555037938,0.817,1769.7,1769.5,0.1204461]
[1745555038129,0.817,1769.7,1769.6,0.11989086]
[1745555038513,0.817,1769.7,1769.2,12.09197913]
[1745555038710,0.817,1769.7,1769.6,0.11989086]
[1745555038910,0.817,1769.7,1769.2,12.091978]
[1745555039416,0.817,1769.7,1769.3,0.12155678]
[1745555039833,0.817,1769.7,1769.3,5.77350174]
[1745555040644,0.817,1769.7,1769.3,0.12155678]
[1745555041142,0.817,1769.7,1769.3,5.7734658]
[1745555041310,0.817,1769.7,1769.3,6.99480462]
[1745555042216,0.817,1769.7,1769.3,1.3428956]
[1745555042557,0.817,1769.7,1769.3,6.99480896]
[1745555042918,0.76710167,1769.6,1769.3,0.12155678]
[1745555043117,0.8082,1769.4,1769.3,0.12155678]
[1745555043323,0.8082,1769.4,1769.1,5.65258639]
[1745555043521,0.8082,1769.4,1769.3,0.12186555]
[1745555043744,0.8082,1769.4,1769.2,0.12242098]
[1745555043948,0.8082,1769.4,1769.3,0.12186555]
[1745555044316,0.8082,1769.4,1769.1,5.6524297]
[1745555044640,4.91,1769.5,1769.4,5.65163332]
[1745555045011,4.91,1769.5,1769.4,0.12131018]
[1745555045441,4.91,1769.5,1769.4,5.7729435]
[1745555045644,4.91,1769.5,1769.4,0.12131018]
[1745555046545,4.91,1769.5,1769.4,5.7729435]
[1745555046743,4.91,1769.5,1769.4,6.57113643]
[1745555047044,4.91,1769.5,1769.4,7.32743643]
[1745555047614,5.681,1769.8,1769.4,7.32743643]
[1745555048127,5.681,1769.8,1769.4,7.32720769]
[1745555048327,5.681,1769.8,1769.4,7.3271981]
[1745555048528,5.681,1769.8,1769.5,5.65124169]
[1745555048855,5.681,1769.8,1769.6,0.12047404]
[1745555049166,5.681,1769.8,1769.7,0.11991886]
[1745555049359,5.681,1769.8,1769.4,6.40769499]
[1745555049561,5.681,1769.8,1769.5,0.12102929]
[1745555052468,5.681,1769.8,1769.2,5.6520352]
[1745555052469,0.7774,1769.7,1769.2,5.6520352]
[1745555052656,0.7774,1769.7,1769.6,0.12047404]
[1745555053064,0.7774,1769.7,1769.5,5.6513097]
[1745555053260,0.7774,1769.7,1769.6,0.12047404]
[1745555053441,0.7774,1769.7,1769.4,5.65144613]
[1745555053773,0.7774,1769.7,1769.5,0.12102929]
[1745555054775,0.7774,1769.7,1769.5,5.77220429]
[1745555055370,0.7774,1769.7,1769.5,0.12102929]
[1745555055872,0.7774,1769.7,1769.5,5.77232843]
[1745555056861,4.91,1769.8,1769.5,5.77232843]
[1745555058446,4.91,1769.8,1769.5,0.12102929]
[1745555058647,5.52254659,1769.8,1769.5,0.12102929]
[1745555058875,5.52254659,1769.8,1769.5,5.77220318]
[1745555059180,4.91,1769.8,1769.5,5.77211306]
[1745555059343,4.91,1769.8,1769.5,5.77209616]
[1745555059751,4.91,1769.8,1769.6,5.65094664]
[1745555060098,4.91,1769.8,1769.7,0.11991886]
[1745555060458,4.91,1769.8,1769.6,5.65094664]
[1745555060653,4.91,1769.8,1769.7,0.11991886]
[1745555060879,4.91,1769.8,1769.5,5.65111526]
[1745555061080,4.91,1769.8,1769.7,0.11991886]
[1745555061481,1.21546587,1769.9,1769.5,5.65111526]
[1745555061677,4.91,1769.8,1769.7,0.11991886]
[1745555061882,4.91,1769.8,1769.5,5.65111526]
[1745555062185,4.91,1769.8,1769.6,0.11992521]
[1745555063161,4.91,1769.8,1769.6,5.77074881]
[1745555063664,4.91,1769.8,1769.6,5.77068815]
[1745555063987,4.91,1769.8,1769.7,5.65067525]
[1745555064182,4.91,1769.8,1769.7,5.76942777]
[1745555064483,5.7191,1770.1,1769.7,5.76942777]
[1745555064679,5.7191,1770.1,1769.8,5.65014653]
[1745555064852,5.7191,1770.1,1769.9,5.64989873]
[1745555065054,5.7191,1770.1,1769.9,0.11764235]
[1745555065384,5.7191,1770.1,1770.0,0.11708736]
[1745555065584,5.7191,1770.1,1769.7,5.65056911]
[1745555065762,5.7191,1770.1,1769.8,0.11819741]
[1745555066765,5.7191,1770.1,1769.7,5.65067525]
[1745555067080,5.7191,1770.1,1769.8,0.11819741]
[1745555067275,5.7191,1770.1,1769.8,5.76850436]
[1745555068090,5.7191,1770.1,1769.8,0.11819741]
[1745555068265,6.29101,1770.1,1769.8,0.11819741]
[1745555068454,6.29101,1770.1,1769.6,6.40632284]
[1745555068975,6.29101,1770.1,1769.7,0.11875252]
[1745555069289,6.29101,1770.1,1769.6,6.40632284]
[1745555069475,6.29101,1770.1,1769.8,0.11819741]
[1745555069675,0.629101,1770.0,1769.6,6.40632284]
[1745555069877,0.629101,1770.0,1769.9,0.11764235]
[1745555070077,0.629101,1770.0,1769.6,6.40632284]
[1745555070276,5.7191,1770.1,1769.9,0.11764235]
[1745555070472,5.7191,1770.1,1769.6,6.40632284]
[1745555070689,5.7191,1770.1,1770.0,0.11708736]
[1745555070867,5.7191,1770.1,1769.6,6.40632284]
[1745555071350,5.7191,1770.1,1769.7,0.11875252]
[1745555071553,6.29101,1770.1,1769.6,6.40632284]
[1745555071777,6.29101,1770.1,1769.7,0.11875252]
[1745555071977,0.7505,1770.0,1769.5,6.40687139]
[1745555072161,1.373441,1770.0,1769.6,0.11930771]
[1745555072886,1.373441,1770.0,1769.6,5.77028547]
[1745555073186,0.7505,1770.0,1769.6,0.11930771]
[1745555073989,0.76710167,1769.9,1769.3,6.46429042]
[1745555074195,0.7714,1769.8,1769.4,0.12041826]
[1745555074354,0.7714,1769.8,1769.5,5.65102031]
[1745555074560,0.7714,1770.0,1769.6,5.76997629]
[1745555075285,0.7714,1770.0,1769.6,6.99334582]
[1745555075490,0.7714,1770.0,1769.6,6.99313207]
[1745555076762,0.7714,1770.0,1769.6,1.34236849]
[1745555077291,0.7714,1770.0,1769.6,0.11899896]
[1745555077892,0.7714,1770.0,1769.6,0.00899896]
[1745555078090,0.7714,1770.0,1769.6,0.13113253]
[1745555078888,4.906,1769.9,1769.6,0.13113253]
[1745555079381,0.8181,1769.8,1769.4,5.65146353]
[1745555079561,0.8181,1769.8,1769.5,0.13246504]
[1745555081001,0.8181,1769.8,1769.3,6.42649031]
[1745555081173,1.23250281,1769.8,1769.4,0.13313141]
[1745555081555,1.23250281,1769.8,1769.2,5.6522461]
[1745555081902,1.23250281,1769.8,1769.3,0.13379785]
[1745555082766,1.23250281,1769.8,1769.3,5.78573315]
[1745555082963,1.23250281,1769.8,1769.3,5.78550952]
[1745555084497,1.23250281,1769.8,1769.3,5.78550243]
[1745555084802,1.23250281,1769.8,1769.4,5.65158896]
[1745555085102,1.84635309,1769.8,1769.5,0.13246504]
[1745555088142,1.84635309,1769.8,1769.3,5.65174355]
[1745555088327,1.84635309,1769.8,1769.6,0.13179875]
[1745555088530,1.84635309,1769.8,1769.3,5.65174355]
[1745555088735,1.84635309,1769.8,1769.7,0.13113253]
[1745555089195,1.84635309,1769.8,1769.3,5.65174355]
[1745555089400,1.84635309,1769.8,1769.4,0.13391351]
[1745555091135,0.8071,1769.7,1769.1,0.7747]
[1745555091345,0.8071,1769.7,1769.1,1.42071785]
[1745555091525,0.8071,1769.7,1769.1,0.64601785]
[1745555091837,0.8071,1769.7,1769.0,5.68546099]
[1745555091838,0.7749,1769.6,1769.0,0.0327812]
[1745555092142,0.7749,1769.4,1769.0,0.0327812]
[1745555092540,0.7749,1769.4,1768.8,0.7984]
[1745555092820,0.7749,1769.2,1768.8,0.12660667]
[1745555093037,0.7749,1769.0,1768.6,5.65394268]
[1745555093333,0.7749,1769.0,1768.8,0.12660667]
[1745555093533,0.7749,1769.0,1768.7,0.12727356]
[1745555093742,0.7749,1769.0,1768.8,0.12660667]
[1745555096608,0.7749,1769.0,1768.5,5.65437803]
[1745555096940,0.7749,1769.0,1768.6,0.12794054]
[1745555097131,1.76631339,1769.0,1768.6,0.12794054]
[1745555097536,0.7666,1768.9,1768.6,0.12794054]
[1745555098139,0.7666,1768.9,1768.4,5.65472381]
[1745555098344,0.7666,1768.9,1768.7,0.13052169]
[1745555098616,0.7666,1768.9,1768.8,0.12985479]
[1745555098815,0.7666,1768.9,1768.4,5.65472381]
[1745555099039,0.7666,1768.9,1768.5,5.78634969]
[1745555100045,0.7666,1768.9,1768.5,0.13185571]
[1745555100767,0.76710167,1768.6,1767.8,0.7918]
[1745555101057,0.76710167,1768.6,1766.5,6.09367948]
[1745555101058,0.8073,1768.1,1767.3,6.4501457]
[1745555101246,7.78617998,1768.0,1767.4,6.30290326]
[1745555101426,7.78617998,1768.0,1767.4,11.31566842]
[1745555101631,7.78617998,1768.0,1767.4,5.65777973]
[1745555101850,7.78617998,1768.0,1767.4,5.65777198]
[1745555102159,7.78617998,1768.0,1767.3,6.44997337]
[1745555102368,0.8154,1767.9,1767.3,0.7918]
[1745555102517,2.87850731,1767.8,1767.3,0.7918]
[1745555102826,2.87850731,1767.8,1767.1,5.65890403]
[1745555102827,3.24789804,1767.8,1767.1,6.42410847]
[1745555103022,3.24789804,1767.8,1767.1,6.42407387]
[1745555103216,0.8154,1767.7,1767.1,6.42407387]
[1745555103450,4.906,1767.6,1767.1,0.7653]
[1745555103620,5.47752406,1767.6,1767.1,0.7653]
[1745555103818,5.47752406,1767.6,1766.9,6.42768251]
[1745555104050,0.76710167,1767.5,1767.0,5.65913655]
[1745555104622,0.76710167,1767.5,1766.9,6.42776733]
[1745555104820,0.76710167,1767.5,1766.9,12.08716851]
[1745555105017,4.906,1767.6,1767.3,5.65807276]
[1745555105342,4.906,1767.6,1767.3,6.43509629]
[1745555105744,4.907,1767.5,1767.3,6.43509629]
[1745555106532,4.907,1767.5,1767.3,0.7769]
[1745555106735,4.907,1767.5,1767.2,5.65844023]
[1745555106938,4.907,1767.5,1767.2,11.316878]
[1745555107122,4.907,1767.5,1767.2,5.65866908]
[1745555107842,4.907,1767.5,1767.2,5.65848243]
[1745555108360,4.907,1767.5,1767.1,6.42303527]
[1745555109158,4.907,1767.5,1767.1,0.7642]
[1745555109467,4.907,1767.5,1767.3,5.65816687]
[1745555109678,4.907,1767.5,1767.2,5.65850967]
[1745555109859,4.907,1767.5,1767.2,5.65845329]
[1745555110062,4.907,1767.5,1767.2,5.65841249]
[1745555110257,4.907,1767.5,1767.3,5.65819885]
[1745555110760,4.907,1767.5,1767.2,5.6584662]
[1745555110960,4.907,1767.5,1767.2,5.65845939]
[1745555111673,4.907,1767.5,1767.2,5.65854842]